Cogmind - Beta 13 *** ADVENTURER MODE // 2024.02.29 @ 18:36:09 Player: _kalibre_ Result: Self-destructed Performance ------------- Evolutions (1) 500 Regions Visited (2) 400 Robots Destroyed (19) 95 Value Destroyed (438) 438 Prototype IDs (0) 0 Alien Tech Used (0) 0 Bonus (0) 0 TOTAL SCORE: 1433 Bonus ------- None Cogmind --------- Core Integrity 154/400 Matter 290/300 Energy 100/100 System Corruption 0% Temperature Cool (0) Movement Core (1400) Ox27 Location -9/Materials Parts ------- > --- POWER (1) -------- (None) > --- PROPULSION (2) --- (None) > --- UTILITY (3) ------ Huge Storage Unit Visual Processing Unit > --- WEAPON (3) ------- Mining Claw > --- INVENTORY (25) --- Large Storage Unit Sensor Array Terrain Scanner ECM Suite EM Pulse Gun Mining Claw Mining Claw Peak State ------------ > --- POWER ------------ (None) > --- PROPULSION ------- Flight Unit Flight Unit > --- UTILITY ---------- Huge Storage Unit Visual Processing Unit > --- WEAPON ----------- EM Pulse Gun Light Assault Rifle Mining Claw > --- INVENTORY -------- Large Storage Unit Sensor Array Terrain Scanner ECM Suite Mining Claw Mining Claw [Rating: 8] Favorites ----------- Power Light Ion Engine Engine Light Ion Engine Propulsion Flight Unit Wheel Wheel Flight Unit Flight Unit Utility Huge Storage Unit Storage Huge Storage Unit Processor Visual Processing Unit Weapon Small Laser Energy Gun Small Laser Ballistic Gun Light Assault Rifle Slashing Weapon Mining Claw Build | -11 -10 -9 ------- Run | Yrd Mat Mat Slots Evolved 2 | . . 2 Power . | . . . Propulsion . | . . . Utility 1 | . . 1 Weapon 1 | . . 1 Parts Attached 22 | 5 6 11 Power 1 | 1 . . Engine 1 | 1 . . Core . | . . . Reactor . | . . . Propulsion 8 | 2 4 2 Treads . | . . . Leg . | . . . Wheel 4 | 2 2 . Hover . | . . . Flight 4 | . 2 2 Utility 3 | . 2 1 Device . | . . . Storage 2 | . 2 . Processor 1 | . . 1 Hackware . | . . . Protection . | . . . Artifact . | . . . Weapon 10 | 2 . 8 Energy Gun 4 | 2 . 2 Energy Cannon . | . . . Ballistic Gun 2 | . . 2 Ballistic Cannon . | . . . Launcher . | . . . Special Weapon . | . . . Impact Weapon . | . . . Slashing Weapon 4 | . . 4 Piercing Weapon . | . . . Special Melee Weapon . | . . . Unidentified Prototypes . | . . . Parts Lost 9 | . 2 7 Power 1 | . 1 . Propulsion 4 | . 1 3 Utility . | . . . Weapon 4 | . . 4 Highest Loss Streak 4 | . 2 4 To Critical Strikes . | . . . Average Slot Usage (%) 58 | . 83 47 Engine 3 | . 13 . Wheel 9 | . 27 1 Flight 8 | . . 12 Storage 11 | . 13 11 Processor 7 | . . 10 Energy Gun 13 | . 28 7 Ballistic Gun 2 | . . 3 Naked Turns . | . . . Heaviest Build 86 | 6 86 84 Greatest Support 20 | 20 20 10 Greatest Overweight (x) 27 | . 8 27 Average Overweight (x) 4 | . 2 10 Largest Inventory Capacity 25 | 5 25 25 Average Capacity 22 | 5 21 25 Most Carried 10 | 3 10 10 Average Carried 7 | 1 6 8 Final Capacity 25 | 5 25 25 Final Carried 9 | 2 9 7 Class Distribution -------------------- 89% | Mutant 10% | Skirmisher Dominant Class ---------------- Mutant | -10/Materials Mutant | -9/Materials Resources | -11 -10 -9 ----------- Run | Yrd Mat Mat Matter Collected 412 | 159 149 104 Remotely . | . . . Salvage Created 547 | 38 177 332 Parts 40 | 1 15 24 Haulers Intercepted . | . . . Recyclers Shooed . | . . . Parts Field Recycled . | . . . Retrieved Matter . | . . . Parts Self-Destructed . | . . . Prevented . | . . . Kills | -11 -10 -9 ------- Run | Yrd Mat Mat Combat Hostiles Destroyed 17 | 1 7 9 Melee 1 | . . 1 Guns 15 | 1 6 8 Classes Destroyed 4 | 1 2 1 Watcher 2 | . 1 1 Swarmer 9 | . 5 4 Grunt 4 | 1 2 1 Sentry 4 | . . 4 Best Kill Streak 7 | 1 3 7 Combat Bots Only 4 | 1 2 4 Max Kills in Single Turn 2 | 1 2 2 Gunslinging 1 | . 1 1 Exploded . | . . . Melee 1 | . . 1 Uniques/NPCs Destroyed . | . . . Combat | -11 -10 -9 -------- Run | Yrd Mat Mat Hostile Shots Fired 144 | 3 61 80 Missed 38 | 3 13 22 Damage Taken 944 | . 382 562 Core 374 | . 128 246 Absorbed by Shields . | . . . Ignored by Resistances 283 | . 116 167 Core Remaining (%) 74 | 100 48 . Volleys Fired 52 | 2 20 30 Largest 3 | 2 2 3 Hottest 130 | 90 90 130 Shots Fired 91 | 4 40 47 Gun 91 | 4 40 47 Cannon . | . . . Launcher . | . . . Special . | . . . Kinetic 21 | . . 21 Thermal 67 | 4 40 23 Explosive . | . . . Electromagnetic 3 | . . 3 Robot Hit Streak 35 | 4 8 35 Robot Miss Streak 2 | . 2 1 Penetration Max . | . . . Secondary Targets 7 | . 1 6 Max Gunslinging Chain 1 | . 1 1 Shots Hit Robots 80 | 4 29 47 Core Hits 25 | 2 9 14 Critical Kills . | . . . Critical Parts Destroyed 1 | . . 1 Critical Strikes 6 | 1 2 3 Burn 5 | 1 2 2 Destroy 1 | . . 1 Melee Attacks 2 | . . 2 Impact . | . . . Slashing 2 | . . 2 Piercing . | . . . Sneak Attacks . | . . . Combat Hostiles . | . . . Follow-up Attacks . | . . . Damage Inflicted 843 | 49 388 406 Guns 756 | 49 348 359 Cannons . | . . . Explosions . | . . . Melee 47 | . . 47 Ramming 40 | . 40 . Kinetic 151 | . . 151 Thermal 573 | 49 348 176 Explosive . | . . . Electromagnetic 32 | . . 32 Impact . | . . . Slashing 47 | . . 47 Piercing . | . . . Highest Corruption . | . . . Average Corruption . | . . . Corruption Purged . | . . . Corruption Blocked . | . . . Overload Shots . | . . . Overflow Damage . | . . . Projectiles . | . . . Explosions . | . . . Melee . | . . . Knockbacks . | . . . Impact . | . . . Kinetic . | . . . Secondary . | . . . Self-Inflicted Damage 20 | . 20 . Shots . | . . . Rammed 1 | . 1 . Targets Rammed 1 | . 1 . Kicked . | . . . Crushed . | . . . Highest Temperature 307 | 60 307 152 Average Temperature 83 | 33 104 51 Received Heat Transfer 483 | . 192 291 Siege Activations . | . . . Robots Corrupted . | . . . Combat Hostiles . | . . . Parts Fried 1 | . . 1 Impact Corruptions 1 | . 1 . Robots Melted 1 | . 1 . Combat Hostiles 1 | . 1 . Parts Melted 2 | . 1 1 Heat Transferred 1883 | 198 1078 607 Parts Sabotaged . | . . . Parts Stolen . | . . . Parts Stripped . | . . . Power Chain Reactions . | . . . Alert | -11 -10 -9 ------- Run | Yrd Mat Mat Peak Influence 258 | 20 258 239 Initial 92 | . 11 92 Average 116 | 2 133 118 Maximum Alert Level 1 | . 1 1 Low Security (%) 70 | 100 68 68 Level 1 29 | . 31 31 Level 2 . | . . . Level 3 . | . . . Level 4 . | . . . Level 5 . | . . . High Security . | . . . Max Security . | . . . Squads Dispatched 1 | . 1 . Investigation 1 | . 1 . Extermination . | . . . Reinforcement . | . . . Assault . | . . . Garrison . | . . . Intercept . | . . . Searches Triggered . | . . . Construction Impeded . | . . . Haulers Reinforced . | . . . Active Scanning Responses . | . . . Cargo Convoy Interrupts . | . . . Stealth | -11 -10 -9 --------- Run | Yrd Mat Mat Distress Signals 3 | . 1 2 Communications Jammed . | . . . Distress Signals . | . . . Times Spotted 27 | 1 14 12 Peak Tracking Total 7 | 1 6 7 Tactical Retreats 2 | . 2 . Traps | -11 -10 -9 ------- Run | Yrd Mat Mat Traps Triggered 1 | . 1 . Indirectly . | . . . Trap Hack Attempts . | . . . Triggered . | . . . Disarmed . | . . . Reprogrammed . | . . . Reused . | . . . Traps Extracted . | . . . Installed . | . . . Triggered . | . . . Machines | -11 -10 -9 ---------- Run | Yrd Mat Mat Machines Disabled . | . . . Max in Single Turn . | . . . Machines Repaired . | . . . Machines Dismantled . | . . . Machines Sabotaged . | . . . Overloaded Fab Kills . | . . . Hacking | -11 -10 -9 --------- Run | Yrd Mat Mat Machines Accessed 1 | . 1 . Terminals 1 | . 1 . Fabricators . | . . . Repair Stations . | . . . Recycling Units . | . . . Scanalyzers . | . . . Garrison Access . | . . . Total Hacks 2 | . 2 . Successful 1 | . 1 . Failed 1 | . 1 . Catastrophic . | . . . Database Lockouts . | . . . Manual . | . . . Terminals 2 | . 2 . Fabricators . | . . . Repair Stations . | . . . Recycling Units . | . . . Scanalyzers . | . . . Garrison Access . | . . . Terminal Hacks 1 | . 1 . Terminal Index 1 | . 1 . Fabricator Hacks . | . . . Repair Station Hacks . | . . . Recycling Unit Hacks . | . . . Scanalyzer . | . . . Garrison Access Hacks . | . . . Unauthorized Hacks . | . . . Terminals . | . . . Fabricators . | . . . Repair Stations . | . . . Recycling Units . | . . . Scanalyzers . | . . . Garrison Access . | . . . Data Cores Recovered . | . . . Used . | . . . Hacking Detections 1 | . 1 . Full Trace Events . | . . . Feedback Events . | . . . Feedback Blocked . | . . . Robot Schematics Acquired . | . . . Robots Built . | . . . Authchips . | . . . Time . | . . . Total Robot Build Rating . | . . . Part Schematics Acquired . | . . . Parts Built . | . . . Authchips . | . . . Time . | . . . Total Part Build Rating . | . . . Parts Repaired . | . . . Time . | . . . Parts Recycled . | . . . Recycled Matter . | . . . Retrieved Matter . | . . . Retrieved Components . | . . . Parts Scanalyzed . | . . . Part Schematics Acquired . | . . . Parts Damaged . | . . . Bothacking | -11 -10 -9 ------------ Run | Yrd Mat Mat Used RIF Installer . | . . . Robots Hacked . | . . . Non-combat . | . . . Combat . | . . . Robot Hacks Applied . | . . . Relay Couplers Released . | . . . Fabnet Peak Effective % . | . . . Robots Rewired . | . . . Allies Hacked . | . . . Hacks Repelled . | . . . Allies | -11 -10 -9 -------- Run | Yrd Mat Mat Total Allies . | . . . Largest Group . | . . . Highest-Rated Group . | . . . Highest-Rated Ally . | . . . Total Orders . | . . . Ally Attacks . | . . . Total Damage . | . . . Kills . | . . . Allies Corrupted . | . . . Allies Melted . | . . . Intel | -11 -10 -9 ------- Run | Yrd Mat Mat Robot Analysis Total . | . . . Derelict Logs Recovered . | . . . Drone Launches . | . . . Drone Recoveries . | . . . Exploration | -11 -10 -9 ------------- Run | Yrd Mat Mat Turns Passed 1220 | 64 347 809 Spaces Moved 386 | 64 199 123 Core 30 | 18 . 12 Treads . | . . . Legs . | . . . Wheels 298 | 46 199 53 Hover . | . . . Flight 58 | . . 58 Fastest Speed 50 | 50 80 200 Average Speed 259 | 71 121 582 Slowest Speed 1400 | 80 200 1400 Overloaded Moves . | . . . Propulsion Burnouts . | . . . Robots Hopped . | . . . Cave-ins Triggered . | . . . Exploration Rate (%) 19 | 6 36 17 Regions Visited 2 Branch Regions . Pre-discovered Areas . | . . . Known Exits Taken . | . . . Unknown Exits Taken 2 | 1 1 . Scrap Searched . | . . . Spaces Dug . | . . . Terrain Destroyed . | . . . Melee . | . . . Projectile . | . . . AOE . | . . . Terrain Rammed . | . . . Walls Destroyed . | . . . Machines Disabled . | . . . Actions | -11 -10 -9 --------- Run | Yrd Mat Mat Total 520 | 77 267 176 Wait 31 | . 30 1 Move 384 | 63 198 123 Hop . | . . . Pick Up 19 | 7 8 4 Fast Attach . | . . . Attach 21 | 5 5 11 Detach 9 | . 4 5 Swap 1 | . 1 . Drop . | . . . Fire 52 | 2 20 30 Melee 2 | . . 2 Ram 1 | . 1 . Kick . | . . . Crush . | . . . Escape Stasis . | . . . Rewire . | . . . Trap . | . . . Miscellaneous . | . . . Route ------- -11/Scrapyard -10/Materials -9/Materials History --------- Turn | Location | Event 2 | -11/Scrapyard | Met Revision 17 48 | -11/Scrapyard | Discovered new exit (range 8) 65 | -11/Scrapyard | Entered Materials 245 | -10/Materials | Discovered new exit (range 15) 314 | -10/Materials | Build established: Mutant 401 | -10/Materials | Core integrity fell below 50% 412 | -10/Materials | Entered another Materials area 412 | -9/Materials | Evolved 2 slots: Utility x1, Weapon x1 607 | -9/Materials | Lost 4 parts (1n3w) 1213 | -9/Materials | Core integrity fell below 50% 1221 | -9/Materials | Self-destructed Last Messages --------------- K-01 Serf collects debris. K-01 Serf cleans the Scanalyzer. K-01 Serf cleans the Terminal. Flight Unit destroyed. Critical hit (Burn: +37). Flight Unit destroyed. Y-45 Defender suffers critical hit (Destroy). Destroyed Lgt. Treads. Y-45 Defender destroyed. K-01 Serf collects debris. R-06 Scavenger collects Heat Sink. R-06 Scavenger collects Beam Rifle. R-06 Scavenger collects Hvy. Assault Rifle. R-06 Scavenger collects Lgt. Treads. K-01 Serf cleans the Terminal. Acquired 16 matter. K-01 Serf cleans the Terminal. W-16 Scout distress signal alerts nearby ally. Lgt. Assault Rifle destroyed. G-34 Mercenary destroyed. Map ----- +----------------------------------------------------+ | ?###########?????????????????????????????????????? | | ?# #?????????????????????????????????????? | | ?# """ #??????????????????????????????????????? | | ?# """ %#??????????????????????????????????????? | | ?# """ #??????????????????????????????????????? | | ?# #??????????????????????????????????????? | | ?# "" #??????????????????????????????????????? | | ?# S"" #??????????????????????????????????????? | | ?# "" % #??????????????????????????????????????? | | ?# %% #??????????????????????????????????????? | | ######+####??????????????????????????????????????? | | % #??????????????????????????????????????? | | #??????????????????????????????????????? | | #??????????????????????????????????????? | | ##### #??????????????????????????????????????? | | #???# #??????????????????????????????????????? | | !#???# #??????????????????????????????????????? | | !##???# #?????###??????????????????????????????? | | ##????# ####### ###????????????????????????????? | | ??????# # """ #????????????????????????????? | | ??????# # """ #????????????????????????????? | | ####### # """ +????????????????????????????? | | # # #??#####?????????????????????? | | !! # # #### *#?????????????????????? | | ! + + "T" +%r #?????????????????????? | | ! # # """ #### @ #?????????????????????? | | # # #??##k##?????????????????????? | | # ###########???#^* ?????????????????????? | | ####### #?????????????# g ????????????????????? | | ??????# #?????????????# ???????????????????? | | ??????# #?????????????# ??????????????????? | | ??????# +?????????????# ?????????????????? | | ??????# #?????????????# ???????????????? | | ??????# #?????????????####### ??????????????? | | ??????# #???????????????????? ?????????????? | | ??????### #????????????????????? #????????????? | | ????????? #?????????????????????? #????????????? | | ????????? #?????????????????????? ?????????????? | | ????????? #??????????????????????????????????????? | | ????????? #??????????????????????????????????????? | | ????????? ???????????????????????????????????????? | | ????????? ???????????????????????????????????????? | | ?????????????????????????????????????????????????? | | ?????????????????????????????????????????????????? | | ?????????????????????????????????????????????????? | | ?????????????????????????????????????????????????? | | ?????????????????????????????????????????????????? | | ?????????????????????????????????????????????????? | | ?????????????????????????????????????????????????? | | ?????????????????????????????????????????????????? | +----------------------------------------------------+ Best States ------------- Heat Dissipation 28 Energy Generation 10 Energy Capacity 125 Matter Stores 300 Matter Capacity 300 Sight Range 18 Terrain Scan Density 10 Resistance: KI 20 Resistance: TH 20 Resistance: EX 20 Resistance: EM 20 Resistance: I 20 Resistance: S 20 Resistance: P 20 Evasion (%) 50 Offensive Hacking 10 Item Schematics ----------------- None Robot Schematics ------------------ None Fabricated ------------ Nothing Alien Tech Used ----------------- None Achievements -------------- It's Just You Challenges ------------ None Game ------ Seed RefineryDataArray Manual? 0 Play Time 00:09:00 Cumulative 0.8 hours Start 2024.02.29 @ 18:00:26 End 2024.02.29 @ 18:36:09 Sessions 3 Manual Loads 0 Difficulty Adventurer Special Mode None Game No. 3 Rogue 0 Adventurer 3 Explorer 0 Win Type - Total 0 Types 0/0/0/0/0/0/0/0/0 Lore% 0 Gallery% 4 Achievement% 5 Wizard Run 0 Options --------- Layout 1 ASCII 0 Keyboard 0 Movement Mouse Keybinds 0 Fullscreen 1 Font 24/Smallcaps Map View 50x35 Zoom Use 0% Tactical HUD 0 Map Filters NONE Filters NONE Steam 1 RUN: 1f3c33d5-d8a0-46e1-8598-e1f565818099